[Event "December 5 Early 2023"]
[Site "https://www.chess.com"]
[Date "2023.12.05"]
[Round "7"]
[White "Tabuenca Mendataurigoitia, Daniel"]
[Black "Timerkhanov, Alexander"]
[Result "1/2-1/2"]
[Board "92"]
[TimeControl "180+1"]
[WhiteFideId "24563617"]
[BlackFideId "24177938"]
[WhiteElo "2481"]
[BlackElo "2649"]
[WhiteTeam "ESP"]
[BlackTeam "RUS"]
[WhiteClock "0:00:02"]
[BlackClock "0:00:03"]

1. Nf3 {[%clk 0:03:00]}  d5 {[%clk 0:02:59]} 2. g3 {[%clk 0:02:59]}  Nf6 {[%clk 0:02:57]} 3. Bg2 {[%clk 0:02:58]}  g6 {[%clk 0:02:57]} 4. O-O {[%clk 0:02:57]}  Bg7 {[%clk 0:02:58]} 5. d3 {[%clk 0:02:54]}  O-O {[%clk 0:02:58]} 6. Nbd2 {[%clk 0:02:54]}  c5 {[%clk 0:02:55]} 7. e4 {[%clk 0:02:53]}  Nc6 {[%clk 0:02:56]} 8. c3 {[%clk 0:02:49]}  b6 {[%clk 0:02:55]} 9. Qc2 {[%clk 0:02:45]}  e5 {[%clk 0:02:51]} 10. a4 {[%clk 0:02:37]}  Bb7 {[%clk 0:02:50]} 11. exd5 {[%clk 0:02:29]}  Nxd5 {[%clk 0:02:50]} 12. Nc4 {[%clk 0:02:27]}  Re8 {[%clk 0:02:49]} 13. Re1 {[%clk 0:02:15]}  Qc7 {[%clk 0:02:46]} 14. Bd2 {[%clk 0:02:01]}  Rad8 {[%clk 0:02:45]} 15. Rad1 {[%clk 0:02:00]}  h6 {[%clk 0:02:26]} 16. Bc1 {[%clk 0:01:45]}  Kh7 {[%clk 0:02:25]} 17. h3 {[%clk 0:01:41]}  f5 {[%clk 0:02:22]} 18. Kh2 {[%clk 0:01:26]}  a6 {[%clk 0:02:17]} 19. Ne3 {[%clk 0:01:24]}  Nxe3 {[%clk 0:02:09]} 20. Bxe3 {[%clk 0:01:21]}  Ne7 {[%clk 0:02:05]} 21. Qe2 {[%clk 0:01:07]}  Nd5 {[%clk 0:01:52]} 22. Bc1 {[%clk 0:01:01]}  Bc6 {[%clk 0:01:49]} 23. Qc2 {[%clk 0:00:57]}  Qd7 {[%clk 0:01:42]} 24. b3 {[%clk 0:00:52]}  Qc7 {[%clk 0:01:42]} 25. Bb2 {[%clk 0:00:47]}  Qb7 {[%clk 0:01:39]} 26. Nh4 {[%clk 0:00:40]}  Bf6 {[%clk 0:01:31]} 27. Nf3 {[%clk 0:00:29]}  Nxc3 {[%clk 0:01:24]} 28. Nxe5 {[%clk 0:00:12]}  Bxe5 {[%clk 0:00:37]} 29. Bxc6 {[%clk 0:00:11]}  Qxc6 {[%clk 0:00:37]} 30. Bxc3 {[%clk 0:00:11]}  Bxc3 {[%clk 0:00:33]} 31. Qxc3 {[%clk 0:00:11]}  Qf3 {[%clk 0:00:33]} 32. Qd2 {[%clk 0:00:05]}  Qd5 {[%clk 0:00:17]} 33. Rxe8 {[%clk 0:00:03]}  Rxe8 {[%clk 0:00:17]} 34. Re1 {[%clk 0:00:03]}  Rxe1 {[%clk 0:00:12]} 35. Qxe1 {[%clk 0:00:04]}  Qxb3 {[%clk 0:00:11]} 36. Qe7+ {[%clk 0:00:04]}  Kg8 {[%clk 0:00:11]} 37. Qe8+ {[%clk 0:00:02]}  Kg7 {[%clk 0:00:09]} 38. Qe5+ {[%clk 0:00:02]}  Kf7 {[%clk 0:00:08]} 39. Qc7+ {[%clk 0:00:03]}  Kf6 {[%clk 0:00:08]} 40. Qd8+ {[%clk 0:00:02]}  Ke5 {[%clk 0:00:08]} 41. Qh8+ {[%clk 0:00:02]}  Kd6 {[%clk 0:00:07]} 42. Qxh6 {[%clk 0:00:02]}  Qe6 {[%clk 0:00:07]} 43. Qf4+ {[%clk 0:00:02]}  Kc6 {[%clk 0:00:07]} 44. Qb8 {[%clk 0:00:02]}  Qd7 {[%clk 0:00:05]} 45. Qa8+ {[%clk 0:00:02]}  Qb7 {[%clk 0:00:04]} 46. Qe8+ {[%clk 0:00:02]}  Kc7 {[%clk 0:00:03]} 47. Qxg6 {[%clk 0:00:03]}  b5 {[%clk 0:00:03]} 48. axb5 {[%clk 0:00:02]}  axb5 {[%clk 0:00:04]} 49. Qxf5 {[%clk 0:00:02]}  Kb6 {[%clk 0:00:03]} 50. Qe6+ {[%clk 0:00:02]}  Ka7 {[%clk 0:00:03]} 51. Qa2+ {[%clk 0:00:03]}  Kb6 {[%clk 0:00:03]} 52. Qe6+ {[%clk 0:00:02]}  Ka7 {[%clk 0:00:03]} 53. Qa2+ {[%clk 0:00:02]}  Kb8 {[%clk 0:00:03]} 54. Qg8+ {[%clk 0:00:02]}  Kc7 {[%clk 0:00:03]} 55. Qf7+ {[%clk 0:00:02]}  Kb6 {[%clk 0:00:03]} 56. Qe6+ {[%clk 0:00:02]} 1/2-1/2

[Event "December 5 Early 2023"]
[Site "https://www.chess.com"]
[Date "2023.12.05"]
[Round "7"]
[White "Pourkashiyan, Atousa"]
[Black "Kuzhylnyi, Oleksandr"]
[Result "0-1"]
[Board "93"]
[TimeControl "180+1"]
[WhiteFideId "12502014"]
[BlackFideId "34110500"]
[WhiteElo "2480"]
[BlackElo "2643"]
[WhiteTeam "USA"]
[BlackTeam "UKR"]
[WhiteClock "0:00:44"]
[BlackClock "0:01:58"]

1. e4 {[%clk 0:02:59]}  g6 {[%clk 0:02:57]} 2. d4 {[%clk 0:02:59]}  Bg7 {[%clk 0:02:58]} 3. Nc3 {[%clk 0:02:57]}  d6 {[%clk 0:02:58]} 4. f4 {[%clk 0:02:57]}  a6 {[%clk 0:02:58]} 5. Nf3 {[%clk 0:02:55]}  b5 {[%clk 0:02:58]} 6. Bd3 {[%clk 0:02:55]}  Nd7 {[%clk 0:02:58]} 7. O-O {[%clk 0:02:55]}  c5 {[%clk 0:02:58]} 8. e5 {[%clk 0:02:45]}  cxd4 {[%clk 0:02:54]} 9. Nxd4 {[%clk 0:02:43]}  dxe5 {[%clk 0:02:50]} 10. Nf3 {[%clk 0:02:28]}  Bb7 {[%clk 0:02:43]} 11. Re1 {[%clk 0:01:59]}  exf4 {[%clk 0:02:36]} 12. Bxf4 {[%clk 0:02:00]}  Ngf6 {[%clk 0:02:34]} 13. Bd6 {[%clk 0:01:56]}  Qb6+ {[%clk 0:02:34]} 14. Kh1 {[%clk 0:01:46]}  Qxd6 {[%clk 0:02:33]} 15. a4 {[%clk 0:01:33]}  b4 {[%clk 0:02:29]} 16. Bb5 {[%clk 0:01:10]}  Qxd1 {[%clk 0:02:20]} 17. Raxd1 {[%clk 0:01:09]}  axb5 {[%clk 0:02:18]} 18. Nxb5 {[%clk 0:01:09]}  O-O {[%clk 0:02:17]} 19. Rxe7 {[%clk 0:01:08]}  Bxf3 {[%clk 0:02:15]} 20. gxf3 {[%clk 0:01:07]}  Rxa4 {[%clk 0:02:14]} 21. Nd6 {[%clk 0:01:05]}  Nc5 {[%clk 0:02:07]} 22. f4 {[%clk 0:00:53]}  Ra2 {[%clk 0:02:02]} 23. f5 {[%clk 0:00:53]}  Rxb2 {[%clk 0:02:02]} 24. fxg6 {[%clk 0:00:54]}  hxg6 {[%clk 0:02:02]} 25. Rd2 {[%clk 0:00:49]}  b3 {[%clk 0:01:58]} 26. Nc4 {[%clk 0:00:44]}  Rxc2 {[%clk 0:01:58]} 0-1

[Event "December 5 Early 2023"]
[Site "https://www.chess.com"]
[Date "2023.12.05"]
[Round "7"]
[White "Ambartsumova, Karina"]
[Black "Ozen, Metehan"]
[Result "1-0"]
[Board "95"]
[TimeControl "180+1"]
[WhiteFideId "4166299"]
[BlackFideId "34596054"]
[WhiteElo "2619"]
[BlackElo "2470"]
[WhiteTeam "RUS"]
[BlackTeam "TUR"]
[WhiteClock "0:00:10"]
[BlackClock "0:00:00"]

1. d4 {[%clk 0:03:00]}  d5 {[%clk 0:02:55]} 2. c4 {[%clk 0:03:00]}  e6 {[%clk 0:02:55]} 3. Nc3 {[%clk 0:03:00]}  Nf6 {[%clk 0:02:55]} 4. cxd5 {[%clk 0:03:00]}  exd5 {[%clk 0:02:55]} 5. Bg5 {[%clk 0:03:00]}  Be7 {[%clk 0:02:56]} 6. e3 {[%clk 0:03:01]}  c6 {[%clk 0:02:56]} 7. Bd3 {[%clk 0:03:01]}  h6 {[%clk 0:02:53]} 8. Bh4 {[%clk 0:03:01]}  Be6 {[%clk 0:02:52]} 9. h3 {[%clk 0:02:51]}  Nbd7 {[%clk 0:02:52]} 10. Qb3 {[%clk 0:02:51]}  Qb6 {[%clk 0:02:51]} 11. Qc2 {[%clk 0:02:51]}  a5 {[%clk 0:02:46]} 12. Nf3 {[%clk 0:02:43]}  Qd8 {[%clk 0:02:37]} 13. O-O {[%clk 0:02:37]}  Nh5 {[%clk 0:02:35]} 14. Bxe7 {[%clk 0:02:37]}  Qxe7 {[%clk 0:02:35]} 15. Rfe1 {[%clk 0:02:18]}  O-O {[%clk 0:02:31]} 16. a3 {[%clk 0:02:18]}  g6 {[%clk 0:01:47]} 17. Rab1 {[%clk 0:02:12]}  Rfc8 {[%clk 0:01:43]} 18. Na4 {[%clk 0:02:10]}  Ng7 {[%clk 0:01:35]} 19. b4 {[%clk 0:01:55]}  axb4 {[%clk 0:01:33]} 20. axb4 {[%clk 0:01:56]}  Bf5 {[%clk 0:01:28]} 21. Nc5 {[%clk 0:01:41]}  Nb6 {[%clk 0:01:17]} 22. Bxf5 {[%clk 0:01:32]}  Nxf5 {[%clk 0:01:15]} 23. e4 {[%clk 0:01:33]}  dxe4 {[%clk 0:01:13]} 24. Rxe4 {[%clk 0:01:33]}  Qf6 {[%clk 0:01:03]} 25. Nxb7 {[%clk 0:01:28]}  Nd5 {[%clk 0:01:03]} 26. Nc5 {[%clk 0:01:25]}  Rd8 {[%clk 0:00:58]} 27. Nd3 {[%clk 0:01:03]}  Nd6 {[%clk 0:00:50]} 28. Re5 {[%clk 0:00:57]}  Nb5 {[%clk 0:00:47]} 29. Rc1 {[%clk 0:00:52]}  Ra3 {[%clk 0:00:44]} 30. Rce1 {[%clk 0:00:43]}  Kg7 {[%clk 0:00:37]} 31. Qd2 {[%clk 0:00:22]}  Rda8 {[%clk 0:00:34]} 32. Nc5 {[%clk 0:00:21]}  Nf4 {[%clk 0:00:29]} 33. Ne4 {[%clk 0:00:20]}  Nxh3+ {[%clk 0:00:28]} 34. Kf1 {[%clk 0:00:17]}  Qd8 {[%clk 0:00:25]} 35. d5 {[%clk 0:00:15]}  Ra2 {[%clk 0:00:21]} 36. Qe3 {[%clk 0:00:12]}  cxd5 {[%clk 0:00:20]} 37. Nc5 {[%clk 0:00:12]}  Rxf2+ {[%clk 0:00:17]} 38. Qxf2 {[%clk 0:00:12]}  Nxf2 {[%clk 0:00:18]} 39. Kxf2 {[%clk 0:00:13]}  Ra2+ {[%clk 0:00:17]} 40. Kg1 {[%clk 0:00:13]}  Qd6 {[%clk 0:00:17]} 41. Nd3 {[%clk 0:00:12]}  d4 {[%clk 0:00:15]} 42. Rxb5 {[%clk 0:00:11]}  Qc6 {[%clk 0:00:13]} 43. Rc5 {[%clk 0:00:11]}  Qa6 {[%clk 0:00:13]} 44. Nfe5 {[%clk 0:00:11]}  Rd2 {[%clk 0:00:12]} 45. Rf1 {[%clk 0:00:11]}  Rxd3 {[%clk 0:00:12]} 46. Nxd3 {[%clk 0:00:12]}  Qxd3 {[%clk 0:00:12]} 47. Rc7 {[%clk 0:00:11]}  Qe3+ {[%clk 0:00:12]} 48. Kh1 {[%clk 0:00:12]}  h5 {[%clk 0:00:07]} 49. Rfxf7+ {[%clk 0:00:12]}  Kh6 {[%clk 0:00:08]} 50. Rh7+ {[%clk 0:00:12]}  Kg5 {[%clk 0:00:09]} 51. Rhe7 {[%clk 0:00:11]}  Qg3 {[%clk 0:00:07]} 52. Rcd7 {[%clk 0:00:10]}  d3 {[%clk 0:00:07]} 53. b5 {[%clk 0:00:09]}  h4 {[%clk 0:00:06]} 54. b6 {[%clk 0:00:08]}  h3 {[%clk 0:00:06]} 55. gxh3 {[%clk 0:00:08]}  Qxh3+ {[%clk 0:00:06]} 56. Kg1 {[%clk 0:00:08]}  Qg3+ {[%clk 0:00:06]} 57. Kf1 {[%clk 0:00:09]}  Qf3+ {[%clk 0:00:03]} 58. Ke1 {[%clk 0:00:10]}  Qh1+ {[%clk 0:00:00]} 59. Kd2 {[%clk 0:00:10]} 1-0

[Event "December 5 Early 2023"]
[Site "https://www.chess.com"]
[Date "2023.12.05"]
[Round "7"]
[White "Ianovsky, Matias Manuel"]
[Black "Swicarz, Maciej"]
[Result "1-0"]
[Board "98"]
[TimeControl "180+1"]
[WhiteFideId "112470"]
[BlackFideId "1113585"]
[WhiteElo "2590"]
[BlackElo "2446"]
[WhiteTeam "ARG"]
[BlackTeam "POL"]
[WhiteClock "0:00:26"]
[BlackClock "0:00:02"]

1. d4 {[%clk 0:02:57]}  Nf6 {[%clk 0:02:57]} 2. Nf3 {[%clk 0:02:57]}  e6 {[%clk 0:02:57]} 3. c4 {[%clk 0:02:58]}  b6 {[%clk 0:02:54]} 4. g3 {[%clk 0:02:58]}  Ba6 {[%clk 0:02:53]} 5. b3 {[%clk 0:02:58]}  d5 {[%clk 0:02:52]} 6. Bg2 {[%clk 0:02:54]}  Nbd7 {[%clk 0:02:50]} 7. Nbd2 {[%clk 0:02:49]}  c5 {[%clk 0:02:48]} 8. O-O {[%clk 0:02:47]}  Rc8 {[%clk 0:02:46]} 9. dxc5 {[%clk 0:02:29]}  Nxc5 {[%clk 0:02:43]} 10. b4 {[%clk 0:02:29]}  Ncd7 {[%clk 0:02:39]} 11. b5 {[%clk 0:02:28]}  Bb7 {[%clk 0:02:38]} 12. Nd4 {[%clk 0:02:29]}  Bc5 {[%clk 0:02:34]} 13. N2b3 {[%clk 0:02:06]}  O-O {[%clk 0:02:28]} 14. Bb2 {[%clk 0:02:04]}  Ba8 {[%clk 0:02:17]} 15. Nc6 {[%clk 0:02:00]}  Bxc6 {[%clk 0:02:14]} 16. bxc6 {[%clk 0:02:01]}  Rxc6 {[%clk 0:02:14]} 17. cxd5 {[%clk 0:02:00]}  Nxd5 {[%clk 0:02:10]} 18. Rc1 {[%clk 0:01:50]}  Rd6 {[%clk 0:02:03]} 19. Qc2 {[%clk 0:01:41]}  N5f6 {[%clk 0:01:55]} 20. Nd2 {[%clk 0:01:32]}  Ne5 {[%clk 0:01:26]} 21. Ne4 {[%clk 0:01:16]}  Nxe4 {[%clk 0:01:21]} 22. Bxe4 {[%clk 0:01:07]}  Ng6 {[%clk 0:01:17]} 23. Rfd1 {[%clk 0:01:04]}  f5 {[%clk 0:00:49]} 24. Bf3 {[%clk 0:00:45]}  f4 {[%clk 0:00:45]} 25. Kg2 {[%clk 0:00:44]}  fxg3 {[%clk 0:00:44]} 26. hxg3 {[%clk 0:00:44]}  Rxd1 {[%clk 0:00:37]} 27. Rxd1 {[%clk 0:00:45]}  Qg5 {[%clk 0:00:36]} 28. Qe4 {[%clk 0:00:43]}  Qf5 {[%clk 0:00:21]} 29. Rd7 {[%clk 0:00:40]}  Rf7 {[%clk 0:00:16]} 30. Qxf5 {[%clk 0:00:40]}  exf5 {[%clk 0:00:16]} 31. Bd5 {[%clk 0:00:39]}  Nh8 {[%clk 0:00:14]} 32. Rxa7 {[%clk 0:00:38]}  Kf8 {[%clk 0:00:12]} 33. Bxf7 {[%clk 0:00:32]}  Nxf7 {[%clk 0:00:13]} 34. e3 {[%clk 0:00:30]}  h5 {[%clk 0:00:11]} 35. Bd4 {[%clk 0:00:30]}  Bxd4 {[%clk 0:00:10]} 36. exd4 {[%clk 0:00:31]}  Nd6 {[%clk 0:00:09]} 37. Rd7 {[%clk 0:00:30]}  Nb5 {[%clk 0:00:08]} 38. Rd5 {[%clk 0:00:28]}  Nc3 {[%clk 0:00:05]} 39. Rxf5+ {[%clk 0:00:28]}  Ke7 {[%clk 0:00:06]} 40. Rxh5 {[%clk 0:00:29]}  Nxa2 {[%clk 0:00:06]} 41. Rb5 {[%clk 0:00:28]}  Nc3 {[%clk 0:00:05]} 42. Rxb6 {[%clk 0:00:28]}  Ne2 {[%clk 0:00:05]} 43. d5 {[%clk 0:00:26]}  g5 {[%clk 0:00:04]} 44. Re6+ {[%clk 0:00:25]}  Kf7 {[%clk 0:00:02]} 45. Rxe2 {[%clk 0:00:26]} 1-0

[Event "December 5 Early 2023"]
[Site "https://www.chess.com"]
[Date "2023.12.05"]
[Round "7"]
[White "Todorovic, Bojan"]
[Black "Morgunov, Marc"]
[Result "0-1"]
[Board "101"]
[TimeControl "180+1"]
[WhiteFideId "917087"]
[BlackFideId "1640305"]
[WhiteElo "2436"]
[BlackElo "2572"]
[WhiteTeam "SRB"]
[BlackTeam "AUT"]
[WhiteClock "0:00:25"]
[BlackClock "0:00:54"]

1. Nf3 {[%clk 0:02:59]}  Nf6 {[%clk 0:03:00]} 2. c4 {[%clk 0:02:59]}  g6 {[%clk 0:03:00]} 3. Nc3 {[%clk 0:02:59]}  Bg7 {[%clk 0:03:00]} 4. g3 {[%clk 0:02:59]}  O-O {[%clk 0:03:01]} 5. Bg2 {[%clk 0:02:59]}  d6 {[%clk 0:03:02]} 6. O-O {[%clk 0:03:00]}  e5 {[%clk 0:03:02]} 7. d3 {[%clk 0:02:59]}  c6 {[%clk 0:03:01]} 8. Bg5 {[%clk 0:02:56]}  Re8 {[%clk 0:03:01]} 9. Nd2 {[%clk 0:02:55]}  Nbd7 {[%clk 0:02:59]} 10. Rb1 {[%clk 0:02:53]}  h6 {[%clk 0:02:59]} 11. Bxf6 {[%clk 0:02:50]}  Nxf6 {[%clk 0:02:59]} 12. b4 {[%clk 0:02:47]}  Be6 {[%clk 0:02:53]} 13. b5 {[%clk 0:02:45]}  d5 {[%clk 0:02:52]} 14. bxc6 {[%clk 0:02:43]}  bxc6 {[%clk 0:02:53]} 15. Qa4 {[%clk 0:02:43]}  Qd6 {[%clk 0:02:38]} 16. cxd5 {[%clk 0:02:39]}  cxd5 {[%clk 0:02:37]} 17. Nb5 {[%clk 0:02:37]}  Qd7 {[%clk 0:02:35]} 18. Qa6 {[%clk 0:02:29]}  Rec8 {[%clk 0:02:27]} 19. Rfc1 {[%clk 0:02:23]}  Bf8 {[%clk 0:02:11]} 20. Rxc8 {[%clk 0:02:14]}  Qxc8 {[%clk 0:02:12]} 21. Qxc8 {[%clk 0:01:39]}  Rxc8 {[%clk 0:02:13]} 22. Nxa7 {[%clk 0:01:39]}  Rc2 {[%clk 0:02:08]} 23. Nf3 {[%clk 0:01:19]}  Rxa2 {[%clk 0:01:48]} 24. Nc6 {[%clk 0:01:18]}  e4 {[%clk 0:01:48]} 25. Nfd4 {[%clk 0:01:13]}  Bd7 {[%clk 0:01:46]} 26. Ne5 {[%clk 0:01:12]}  Ba4 {[%clk 0:01:20]} 27. Rc1 {[%clk 0:00:46]}  Bd6 {[%clk 0:01:16]} 28. f4 {[%clk 0:00:46]}  exf3 {[%clk 0:01:06]} 29. Nexf3 {[%clk 0:00:39]}  Ng4 {[%clk 0:01:00]} 30. Bh3 {[%clk 0:00:38]}  Ne5 {[%clk 0:00:55]} 31. Kf2 {[%clk 0:00:25]}  Nxd3+ {[%clk 0:00:54]} 0-1

[Event "December 5 Early 2023"]
[Site "https://www.chess.com"]
[Date "2023.12.05"]
[Round "7"]
[White "Sai Han Thiha"]
[Black "Teterev, Vitaly"]
[Result "1-0"]
[Board "103"]
[TimeControl "180+1"]
[WhiteFideId "13012290"]
[BlackFideId "13501429"]
[WhiteElo "2424"]
[BlackElo "2567"]
[WhiteTeam "MYA"]
[BlackTeam "BLR"]
[WhiteClock "0:00:59"]
[BlackClock "0:00:00"]

1. Nf3 {[%clk 0:03:00]}  Nf6 {[%clk 0:02:59]} 2. g3 {[%clk 0:03:01]}  g6 {[%clk 0:02:54]} 3. b3 {[%clk 0:03:01]}  Bg7 {[%clk 0:02:55]} 4. Bb2 {[%clk 0:03:02]}  O-O {[%clk 0:02:55]} 5. Bg2 {[%clk 0:03:02]}  d6 {[%clk 0:02:55]} 6. d4 {[%clk 0:03:02]}  e5 {[%clk 0:02:51]} 7. dxe5 {[%clk 0:03:03]}  dxe5 {[%clk 0:02:46]} 8. Qxd8 {[%clk 0:02:56]}  Rxd8 {[%clk 0:02:45]} 9. Nxe5 {[%clk 0:02:50]}  Ng4 {[%clk 0:01:47]} 10. Nd3 {[%clk 0:02:46]}  Bxb2 {[%clk 0:01:47]} 11. Nxb2 {[%clk 0:02:47]}  Na6 {[%clk 0:01:42]} 12. Nd3 {[%clk 0:02:46]}  c6 {[%clk 0:01:26]} 13. Nc3 {[%clk 0:02:34]}  Bf5 {[%clk 0:01:20]} 14. e4 {[%clk 0:02:33]}  Be6 {[%clk 0:01:18]} 15. Nf4 {[%clk 0:02:08]}  Nb4 {[%clk 0:01:13]} 16. Rc1 {[%clk 0:02:03]}  Ne5 {[%clk 0:00:55]} 17. a3 {[%clk 0:01:55]}  Na6 {[%clk 0:00:42]} 18. Nxe6 {[%clk 0:01:55]}  fxe6 {[%clk 0:00:41]} 19. f4 {[%clk 0:01:56]}  Nf7 {[%clk 0:00:20]} 20. e5 {[%clk 0:01:53]}  Kf8 {[%clk 0:00:18]} 21. Ne4 {[%clk 0:01:49]}  Ke7 {[%clk 0:00:18]} 22. Ke2 {[%clk 0:01:47]}  Rd7 {[%clk 0:00:16]} 23. Rcd1 {[%clk 0:01:45]}  Rxd1 {[%clk 0:00:14]} 24. Rxd1 {[%clk 0:01:43]}  h6 {[%clk 0:00:15]} 25. h4 {[%clk 0:01:40]}  Rg8 {[%clk 0:00:13]} 26. Nf6 {[%clk 0:01:25]}  Rd8 {[%clk 0:00:09]} 27. Rxd8 {[%clk 0:01:08]}  Kxd8 {[%clk 0:00:10]} 28. b4 {[%clk 0:01:09]}  Nc7 {[%clk 0:00:07]} 29. c4 {[%clk 0:01:09]}  Ke7 {[%clk 0:00:04]} 30. Be4 {[%clk 0:01:05]}  Nh8 {[%clk 0:00:00]} 31. Ng8+ {[%clk 0:00:59]} 1-0

[Event "December 5 Early 2023"]
[Site "https://www.chess.com"]
[Date "2023.12.05"]
[Round "7"]
[White "Herman, Daniel"]
[Black "Jaskolka, Tomasz"]
[Result "1-0"]
[Board "105"]
[TimeControl "180+1"]
[WhiteFideId "30935008"]
[BlackFideId "1170791"]
[WhiteElo "2413"]
[BlackElo "2550"]
[WhiteTeam "USA"]
[BlackTeam "POL"]
[WhiteClock "0:01:02"]
[BlackClock "0:00:37"]

1. Nf3 {[%clk 0:03:00]}  Nf6 {[%clk 0:02:59]} 2. g3 {[%clk 0:03:00]}  d5 {[%clk 0:02:58]} 3. Bg2 {[%clk 0:03:01]}  c5 {[%clk 0:02:59]} 4. O-O {[%clk 0:02:58]}  Nc6 {[%clk 0:02:59]} 5. d4 {[%clk 0:02:58]}  cxd4 {[%clk 0:02:59]} 6. Nxd4 {[%clk 0:02:59]}  e5 {[%clk 0:03:00]} 7. Nxc6 {[%clk 0:02:59]}  bxc6 {[%clk 0:03:00]} 8. c4 {[%clk 0:03:00]}  Be6 {[%clk 0:02:57]} 9. Qa4 {[%clk 0:02:56]}  Qd7 {[%clk 0:02:44]} 10. Nc3 {[%clk 0:02:47]}  Bc5 {[%clk 0:02:28]} 11. cxd5 {[%clk 0:02:41]}  cxd5 {[%clk 0:02:27]} 12. Qxd7+ {[%clk 0:02:42]}  Kxd7 {[%clk 0:02:27]} 13. Rd1 {[%clk 0:02:30]}  Kc6 {[%clk 0:02:13]} 14. Bg5 {[%clk 0:02:21]}  Ng4 {[%clk 0:02:13]} 15. Nxd5 {[%clk 0:02:10]}  Bxf2+ {[%clk 0:01:56]} 16. Kf1 {[%clk 0:01:59]}  Bd4 {[%clk 0:01:51]} 17. Ne3+ {[%clk 0:01:41]}  Kb6 {[%clk 0:01:46]} 18. Nxg4 {[%clk 0:01:40]}  Bxg4 {[%clk 0:01:46]} 19. Bxa8 {[%clk 0:01:27]}  Rxa8 {[%clk 0:01:47]} 20. Rac1 {[%clk 0:01:23]}  f6 {[%clk 0:01:35]} 21. Bd2 {[%clk 0:01:20]}  h5 {[%clk 0:01:27]} 22. Bc3 {[%clk 0:01:16]}  Be3 {[%clk 0:01:25]} 23. Rd6+ {[%clk 0:01:12]}  Kc7 {[%clk 0:00:55]} 24. Rcd1 {[%clk 0:01:12]}  h4 {[%clk 0:00:52]} 25. Ba5+ {[%clk 0:01:10]}  Kb7 {[%clk 0:00:52]} 26. R1d3 {[%clk 0:01:07]}  Bc5 {[%clk 0:00:38]} 27. Rb3+ {[%clk 0:01:02]}  Kc8 {[%clk 0:00:37]} 28. Rd8# {[%clk 0:01:02]} 1-0

[Event "December 5 Early 2023"]
[Site "https://www.chess.com"]
[Date "2023.12.05"]
[Round "7"]
[White "Gavrilov, Maxim"]
[Black "Hoffmann, Asa"]
[Result "0-1"]
[Board "109"]
[TimeControl "180+1"]
[WhiteFideId "24271454"]
[BlackFideId "2001470"]
[WhiteElo "2538"]
[BlackElo "2404"]
[WhiteTeam "RUS"]
[BlackTeam "USA"]
[WhiteClock "0:00:00"]
[BlackClock "0:01:19"]

1. d4 {[%clk 0:03:00]}  Nf6 {[%clk 0:02:56]} 2. c4 {[%clk 0:03:00]}  c5 {[%clk 0:02:56]} 3. d5 {[%clk 0:03:00]}  e5 {[%clk 0:02:56]} 4. Nc3 {[%clk 0:02:58]}  d6 {[%clk 0:02:56]} 5. e4 {[%clk 0:02:58]}  Be7 {[%clk 0:02:56]} 6. Be2 {[%clk 0:02:56]}  Nbd7 {[%clk 0:02:56]} 7. Be3 {[%clk 0:02:47]}  Nf8 {[%clk 0:02:55]} 8. Qd2 {[%clk 0:02:38]}  Ng6 {[%clk 0:02:55]} 9. g3 {[%clk 0:02:36]}  a6 {[%clk 0:02:54]} 10. h4 {[%clk 0:02:35]}  h6 {[%clk 0:02:49]} 11. h5 {[%clk 0:02:26]}  Nf8 {[%clk 0:02:49]} 12. f4 {[%clk 0:02:20]}  Bg4 {[%clk 0:02:32]} 13. f5 {[%clk 0:02:12]}  N8d7 {[%clk 0:02:25]} 14. Rh4 {[%clk 0:01:47]}  Bxe2 {[%clk 0:02:20]} 15. Qxe2 {[%clk 0:01:43]}  Nh7 {[%clk 0:02:20]} 16. Rh2 {[%clk 0:01:40]}  Bg5 {[%clk 0:02:19]} 17. Nf3 {[%clk 0:01:36]}  Bxe3 {[%clk 0:02:18]} 18. Qxe3 {[%clk 0:01:37]}  Ng5 {[%clk 0:02:17]} 19. Nxg5 {[%clk 0:01:37]}  Qxg5 {[%clk 0:02:17]} 20. Ke2 {[%clk 0:01:24]}  Nf6 {[%clk 0:02:11]} 21. Qxg5 {[%clk 0:01:02]}  hxg5 {[%clk 0:02:11]} 22. Kf3 {[%clk 0:00:59]}  g4+ {[%clk 0:02:08]} 23. Ke3 {[%clk 0:00:58]}  Ke7 {[%clk 0:02:00]} 24. Rah1 {[%clk 0:00:56]}  Rh6 {[%clk 0:02:00]} 25. Nd1 {[%clk 0:00:48]}  b5 {[%clk 0:01:57]} 26. b3 {[%clk 0:00:44]}  bxc4 {[%clk 0:01:57]} 27. bxc4 {[%clk 0:00:45]}  Rb8 {[%clk 0:01:57]} 28. Kd3 {[%clk 0:00:29]}  Rb4 {[%clk 0:01:55]} 29. Ne3 {[%clk 0:00:24]}  Ra4 {[%clk 0:01:53]} 30. Rb1 {[%clk 0:00:19]}  Ra3+ {[%clk 0:01:50]} 31. Rb3 {[%clk 0:00:18]}  Rxb3+ {[%clk 0:01:47]} 32. axb3 {[%clk 0:00:19]}  Rxh5 {[%clk 0:01:46]} 33. Ra2 {[%clk 0:00:16]}  Rh3 {[%clk 0:01:39]} 34. Nf1 {[%clk 0:00:10]}  g6 {[%clk 0:01:34]} 35. fxg6 {[%clk 0:00:09]}  fxg6 {[%clk 0:01:34]} 36. Rxa6 {[%clk 0:00:09]}  Nh5 {[%clk 0:01:34]} 37. Ra7+ {[%clk 0:00:08]}  Kf6 {[%clk 0:01:34]} 38. Ne3 {[%clk 0:00:07]}  Rxg3 {[%clk 0:01:32]} 39. Rd7 {[%clk 0:00:07]}  Nf4+ {[%clk 0:01:32]} 40. Kd2 {[%clk 0:00:07]}  Rg1 {[%clk 0:01:29]} 41. Rxd6+ {[%clk 0:00:07]}  Kg5 {[%clk 0:01:29]} 42. Rc6 {[%clk 0:00:06]}  g3 {[%clk 0:01:29]} 43. d6 {[%clk 0:00:05]}  g2 {[%clk 0:01:29]} 44. Nxg2 {[%clk 0:00:05]}  Rxg2+ {[%clk 0:01:28]} 45. Kc3 {[%clk 0:00:05]}  Rg3+ {[%clk 0:01:28]} 46. Kc2 {[%clk 0:00:05]}  Rd3 {[%clk 0:01:26]} 47. Rxc5 {[%clk 0:00:04]}  Rxd6 {[%clk 0:01:26]} 48. Rxe5+ {[%clk 0:00:05]}  Kf6 {[%clk 0:01:26]} 49. Re8 {[%clk 0:00:05]}  Re6 {[%clk 0:01:25]} 50. Rf8+ {[%clk 0:00:05]}  Ke5 {[%clk 0:01:25]} 51. c5 {[%clk 0:00:05]}  Kxe4 {[%clk 0:01:25]} 52. b4 {[%clk 0:00:05]}  Nd5 {[%clk 0:01:25]} 53. Kb3 {[%clk 0:00:05]}  g5 {[%clk 0:01:24]} 54. Kc4 {[%clk 0:00:05]}  Ne3+ {[%clk 0:01:23]} 55. Kb5 {[%clk 0:00:05]}  g4 {[%clk 0:01:23]} 56. c6 {[%clk 0:00:05]}  Nd5 {[%clk 0:01:22]} 57. Rg8 {[%clk 0:00:05]}  Kf3 {[%clk 0:01:21]} 58. Kc5 {[%clk 0:00:05]}  Nxb4 {[%clk 0:01:21]} 59. c7 {[%clk 0:00:03]}  Na6+ {[%clk 0:01:20]} 60. Kd4 {[%clk 0:00:04]}  Nxc7 {[%clk 0:01:20]} 61. Rf8+ {[%clk 0:00:04]}  Kg3 {[%clk 0:01:20]} 62. Rg8 {[%clk 0:00:05]}  Re1 {[%clk 0:01:20]} 63. Rg7 {[%clk 0:00:00]}  Ne6+ {[%clk 0:01:19]} 0-1